fUSD/lending_fUSD_20260227
["ID","MTS","AMOUNT","RATE_DAILY","PERIOD"]
[406802778,1772203873515,-306.75495059,0.0004384,120]
[406802779,1772203873526,-306.75495059,0.0004384,120]
[406802780,1772203873536,-306.75495059,0.0004384,120]
[406802781,1772203873545,-306.75495059,0.0004384,120]
[406802782,1772203873554,-306.75495059,0.0004384,120]
[406802783,1772203873563,-306.75495059,0.0004384,120]
[406802784,1772203873572,-306.75495059,0.0004384,120]
[406802785,1772203873581,-306.75495059,0.0004384,120]
[406802786,1772203873590,-306.75495059,0.0004384,120]
[406802787,1772203873599,-306.75495059,0.0004384,120]
[406802788,1772203873608,-306.75495059,0.0004384,120]
[406802789,1772203873618,-150.0,0.00043841,30]
[406802790,1772203873627,-150.0,0.00043841,30]
[406802791,1772203873636,-1000.0,0.00043846,14]
[406802792,1772203873644,-745.65223616,0.00043847,2]
[406802793,1772203873654,-159.21,0.00043852,120]
[406802794,1772203873664,-150.0,0.00043852,30]
[406802795,1772203873673,-150.0,0.00043863,30]
[406802796,1772203873682,-4127.56,0.00043863,30]
[406802797,1772203873691,-4127.56,0.00043863,30]
[406802798,1772203873701,-161.68352318,0.00043871,30]
[406802799,1772203873710,-293.08929833,0.00043871,30]
[406802800,1772203873719,-150.0,0.0004388,30]
[406802801,1772203873728,-980.39,0.0004389,7]
[406802802,1772203873738,-150.0,0.00043898,14]
[406802803,1772203873747,-154.7077688,0.000439,20]
[406802804,1772203873757,-758.4768,0.000439,2]
[406802805,1772203873766,-2353.14581111,0.000439,120]
[406802806,1772203873775,-5197.19410183,0.000439,120]
[406802807,1772203873784,-3545.25888517,0.000439,2]
[406802808,1772203873794,-213.21692047,0.000439,90]
[406802809,1772203873803,-263.56168476,0.000439,120]
[406802810,1772203873812,-15000.0,0.000439,120]
[406802811,1772203873824,-150.0,0.00043903,30]
[406802812,1772203873834,-161.68352318,0.00043917,30]
[406802813,1772203873843,-293.08929833,0.00043917,30]
[406802814,1772203873854,-150.0,0.00043922,30]
[406802815,1772203873864,-150.0,0.00043922,30]
[406802816,1772203873873,-150.0,0.00043922,30]
[406802817,1772203873882,-150.0,0.00043922,30]
[406802818,1772203873892,-150.0,0.00043925,30]
[406802819,1772203873901,-159.22,0.00043952,120]
[406802820,1772203873911,-150.0,0.00043954,30]
[406802821,1772203873921,-161.68352318,0.00043964,30]
[406802822,1772203873931,-293.08929833,0.00043964,30]
[406802823,1772203873941,-1000.0,0.00043964,14]
[406802824,1772203873951,-400.0,0.0004397,3]
[406802825,1772203873961,-400.0,0.0004397,3]
[406802826,1772203873970,-1000.0,0.00043976,14]
[406802827,1772203873979,-8521.29365445,0.00043978,120]
[406802828,1772203873989,-1462.18759159,0.00043987,120]
[406802829,1772203873998,-150.0,0.00043988,30]
[406802830,1772203874008,-1000.0,0.00043989,14]
[406802831,1772203874017,-8008.32,0.00043991,120]
[406802832,1772203874027,-150.0,0.00043993,30]
[406802833,1772203874036,-200.0,0.00043999,120]
[406802834,1772203874045,-30000.0,0.00044,60]
[406802835,1772203874055,-345.35116898,0.00044,120]
[406802836,1772203874064,-161.5061089,0.00044,120]
[406802837,1772203874073,-653.58396325,0.00044,2]
[406802838,1772203874083,-1822.57454213,0.00044,120]
[406802839,1772203874092,-1000.0,0.00044,90]
[406802840,1772203874102,-1000.0,0.00044,90]
[406802841,1772203874112,-1000.0,0.00044,90]
[406802842,1772203874121,-1000.0,0.00044,90]
[406802843,1772203874132,-217.47517769,0.00044,120]
[406802844,1772203874141,-361.74,0.00044,120]
[406802845,1772203874152,-1000.0,0.00044,120]
[406802846,1772203874161,-3000.0,0.00044,120]
[406802847,1772203874170,-5000.0,0.00044,120]
[406802848,1772203874180,-5000.0,0.00044,7]
[406802849,1772203874189,-218.0,0.00044,2]
[406802850,1772203874199,-187.0,0.00044,30]
[406802851,1772203874208,-13132.19179,0.00044,3]
[406802852,1772203874217,-428.170936,0.00044,57]
[406802853,1772203874227,-249.0,0.00044,30]
[406802854,1772203874236,-34665.54098757,0.00044,2]
[406802855,1772203874246,-109394.17097539,0.00044,2]
[406802856,1772203874255,-187.0,0.00044,2]
[406802857,1772203874265,-500.0,0.00044,120]
[406802858,1772203874274,-500.0,0.00044,120]
[406802859,1772203874283,-500.0,0.00044,120]
[406802860,1772203874292,-623.42592237,0.00044,120]
[406802861,1772203874302,-926.88776046,0.00044,30]
[406802862,1772203874312,-1819.47,0.00044,120]
[406802863,1772203874321,-150.0,0.00044003,30]
[406802864,1772203874330,-150.0,0.00044003,30]
[406802865,1772203874339,-150.0,0.00044006,30]
[406802866,1772203874349,-161.68352318,0.0004401,30]
[406802867,1772203874358,-293.08929833,0.0004401,30]
[406802868,1772203874367,-900.0,0.00044035,60]
[406802869,1772203874376,-1900.0,0.00044035,60]
[406802870,1772203874385,-2100.0,0.00044035,60]
[406802871,1772203874395,-306.75495059,0.00044038,120]
[406802872,1772203874405,-150.0,0.00044039,30]
[406802873,1772203874418,-150.0,0.0004405,30]
[406802874,1772203874427,-161.68352318,0.00044057,30]
[406802875,1772203874436,-293.08929833,0.00044057,30]
[406802876,1772203874447,-150.0,0.00044057,30]
[406802877,1772203874456,-150.0,0.00044057,30]
[406802878,1772203874467,-175.0,0.00044082,120]
[406802879,1772203874475,-150.0,0.00044084,30]
[406802880,1772203874486,-150.0,0.00044084,30]
[406802881,1772203874495,-162.35,0.00044087,120]
[406802882,1772203874505,-81399.40564037,0.000441,2]
[406802883,1772203874515,-161.68352318,0.00044103,30]
[406802884,1772203874524,-293.08929833,0.00044103,30]
[406802885,1772203874533,-150.0,0.00044108,30]
[406802886,1772203874543,-500.0,0.00044109,120]
[406802887,1772203874553,-500.0,0.00044109,120]
[406802888,1772203874562,-267.11082913,0.00044109,120]
[406802889,1772203874572,-9208.96,0.00044109,120]
[406802890,1772203874581,-632.72,0.00044109,120]
[406802891,1772203874590,-844.0,0.0004411,120]
[406802892,1772203874600,-526.46,0.0004411,120]
[406802893,1772203874610,-150.0,0.00044112,30]
[406802894,1772203874619,-12500.0,0.00044125,120]
[406802895,1772203874628,-800.0,0.00044126,16]
[406802896,1772203874638,-800.0,0.00044126,16]
[406802897,1772203874647,-800.0,0.00044126,16]
[406802898,1772203874657,-800.0,0.00044126,16]
[406802899,1772203874670,-800.0,0.00044126,16]
[406802900,1772203874679,-800.0,0.00044126,16]
[406802901,1772203874689,-800.0,0.00044126,16]
[406802902,1772203874699,-800.0,0.00044126,16]
[406802903,1772203874710,-915.38956547,0.00044126,32]
[406802904,1772203874719,-4127.56,0.00044137,30]
[406802905,1772203874730,-4127.56,0.00044137,30]
[406802906,1772203874740,-161.68352318,0.0004415,30]
[406802907,1772203874750,-293.08929833,0.0004415,30]
[406802908,1772203874759,-150.0,0.00044159,30]
[406802909,1772203874769,-150.0,0.00044165,30]
[406802910,1772203874778,-150.0,0.00044165,30]
[406802911,1772203874788,-150.0,0.00044165,30]
[406802912,1772203874798,-150.0,0.00044165,30]
[406802913,1772203874807,-150.0,0.00044175,30]
[406802914,1772203874817,-150.0,0.00044185,30]
[406802915,1772203874826,-162.35,0.00044187,120]
[406802916,1772203874836,-161.68352318,0.00044197,30]
[406802917,1772203874846,-293.08929833,0.00044197,30]
[406802918,1772203874855,-150.0,0.00044198,30]
[406802919,1772203874864,-13373.8524235,0.000442,7]
[406802920,1772203874875,-15000.0,0.000442,120]
[406802921,1772203874884,-150.0,0.00044211,30]
[406802922,1772203874894,-150.0,0.00044237,30]
[406802923,1772203874904,-161.68352318,0.00044243,30]
[406802924,1772203874915,-293.08929833,0.00044243,30]
[406802925,1772203874925,-150.0,0.00044246,30]
[406802926,1772203874934,-150.0,0.00044246,30]
[406802927,1772203874944,-2000.0,0.00044252,120]
[406802928,1772203874954,-150.0,0.00044262,30]
[406802929,1772203874963,-150.0,0.00044262,30]
[406802930,1772203874972,-177.4092433,0.00044265,30]
[406802931,1772203874982,-8008.32,0.00044265,120]
[406802932,1772203874991,-162.35,0.00044287,120]
[406802933,1772203875001,-161.68352318,0.0004429,30]
[406802934,1772203875010,-293.08929833,0.0004429,30]
[406802935,1772203875020,-268.66,0.00044294,30]
[406802936,1772203875030,-150.0,0.00044299,30]
[406802937,1772203875038,-152.0,0.000443,120]
[406802938,1772203875048,-150.0,0.00044313,30]
[406802939,1772203875058,-150.0,0.00044326,30]
[406802940,1772203875225,-150.0,0.00044326,30]
[406802941,1772203875235,-161.68352318,0.00044336,30]
[406802942,1772203875245,-293.08929833,0.00044336,30]
[406802943,1772203875254,-150.0,0.00044357,30]
[406802944,1772203875263,-150.0,0.00044361,30]
[406802945,1772203875273,-150.0,0.00044364,30]
[406802946,1772203875282,-150.0,0.00044377,30]
[406802947,1772203875292,-161.68352318,0.00044383,30]
[406802948,1772203875301,-293.08929833,0.00044383,30]
[406802949,1772203875310,-9208.96,0.00044383,120]
[406802950,1772203875319,-632.72,0.00044383,120]
[406802951,1772203875329,-270.0,0.00044384,120]
[406802952,1772203875338,-162.40621429,0.00044387,120]
[406802953,1772203875349,-10192.58049921,0.000444,30]
[406802954,1772203875358,-150.0,0.00044407,30]
[406802955,1772203875367,-150.0,0.00044407,30]
[406802956,1772203875377,-150.0,0.00044407,30]
[406802957,1772203875386,-150.0,0.00044407,30]
[406802958,1772203875395,-4127.56,0.00044411,30]
[406802959,1772203875404,-4127.56,0.00044411,30]
[406802960,1772203875418,-150.0,0.00044415,30]
[406802961,1772203875428,-150.0,0.00044424,30]
[406802962,1772203875437,-161.68352318,0.00044429,30]
[406802963,1772203875446,-293.08929833,0.00044429,30]
[406802964,1772203875457,-1094.72373248,0.0004444,120]
[406802965,1772203875466,-577.42931908,0.0004444,120]
[406802966,1772203875475,-150.0,0.00044467,30]
[406802967,1772203875485,-161.68352318,0.00044476,30]
[406802968,1772203875495,-293.08929833,0.00044476,30]
[406802969,1772203875504,-509.0,0.00044486,28]
[406802970,1772203875513,-150.0,0.00044486,30]
[406802971,1772203875523,-150.0,0.00044488,30]
[406802972,1772203875532,-150.0,0.00044488,30]
[406802973,1772203875542,-306.75495059,0.00044492,120]
[406802974,1772203875552,-6173.94,0.000445,30]
[406802975,1772203875562,-304.31,0.000445,120]
[406802976,1772203875572,-12500.0,0.000445,120]
[406802977,1772203875582,-15000.0,0.000445,120]
[406802978,1772203875592,-150.0,0.00044516,30]
[406802979,1772203875602,-150.0,0.00044518,30]
[406802980,1772203875613,-161.68352318,0.00044523,30]
[406802981,1772203875624,-293.08929833,0.00044523,30]
[406802982,1772203875634,-8008.32,0.00044539,120]
[406802983,1772203875643,-150.0,0.00044548,30]
[406802984,1772203875654,-150.0,0.00044569,30]
[406802985,1772203875663,-161.68352318,0.00044569,30]
[406802986,1772203875673,-293.08929833,0.00044569,30]
[406802987,1772203875682,-150.0,0.00044569,30]
[406802988,1772203875692,-150.0,0.00044569,30]
[406802989,1772203875702,-150.0,0.00044569,30]
[406802990,1772203875712,-150.0,0.00044569,30]
[406802991,1772203875721,-900.0,0.00044583,60]
[406802992,1772203875731,-1900.0,0.00044583,60]
[406802993,1772203875740,-2100.0,0.00044583,60]
[406802994,1772203875750,-1000.0,0.00044608,120]
[406802995,1772203875761,-1000.0,0.00044608,120]
[406802996,1772203875771,-150.0,0.00044611,30]
[406802997,1772203875780,-161.68352318,0.00044616,30]
[406802998,1772203875790,-293.08929833,0.00044616,30]
[406802999,1772203875799,-150.0,0.0004462,30]
[406803000,1772203875808,-150.0,0.0004465,30]
[406803001,1772203875818,-150.0,0.0004465,30]
[406803002,1772203875828,-150.0,0.0004465,30]
[406803003,1772203875837,-150.0,0.0004465,30]
[406803004,1772203875846,-9209.05241069,0.00044657,120]
[406803005,1772203875856,-632.94,0.00044657,120]
[406803006,1772203875865,-161.68352318,0.00044662,30]
[406803007,1772203875874,-293.08929833,0.00044662,30]
[406803008,1772203875884,-150.0,0.00044672,30]
[406803009,1772203875893,-150.0,0.00044673,30]
[406803010,1772203875903,-150.0,0.00044675,30]
[406803011,1772203875912,-1000.0,0.00044684,50]
[406803012,1772203875922,-4127.56,0.00044685,30]
[406803013,1772203875932,-4127.56,0.00044685,30]
[406803014,1772203875941,-13000.0,0.000447,30]
[406803015,1772203875950,-30000.0,0.000447,120]
[406803016,1772203875960,-161.68352318,0.00044709,30]
[406803017,1772203875970,-293.08929833,0.00044709,30]
[406803018,1772203875979,-150.0,0.00044723,30]
[406803019,1772203875990,-150.0,0.00044731,30]
[406803020,1772203876001,-150.0,0.00044731,30]
[406803021,1772203876011,-150.0,0.00044735,30]
[406803022,1772203876021,-30000.0,0.0004475,120]
[406803023,1772203876031,-161.68352318,0.00044755,30]
[406803024,1772203876040,-293.08929833,0.00044755,30]
[406803025,1772203876049,-150.0,0.00044761,30]
[406803026,1772203876058,-5500.0,0.0004477,47]
[406803027,1772203876068,-150.0,0.00044774,30]
[406803028,1772203876078,-150.0,0.00044798,30]
[406803029,1772203876087,-44187.00868973,0.000448,120]
[406803030,1772203876096,-1000.0,0.000448,120]
[406803031,1772203876106,-1000.0,0.000448,120]
[406803032,1772203876116,-1000.0,0.000448,120]
[406803033,1772203876125,-1000.0,0.000448,120]
[406803034,1772203876135,-1000.0,0.000448,120]
[406803035,1772203876144,-1000.0,0.000448,120]
[406803036,1772203876153,-1000.0,0.000448,120]
[406803037,1772203876162,-1000.0,0.000448,120]
[406803038,1772203876172,-1000.0,0.000448,120]
[406803039,1772203876181,-1000.0,0.000448,120]
[406803040,1772203876191,-156.0,0.000448,120]
[406803041,1772203876200,-213.52576322,0.000448,30]
[406803042,1772203876209,-30000.0,0.000448,120]
[406803043,1772203876219,-15000.0,0.000448,120]
[406803044,1772203876229,-161.68352318,0.00044802,30]
[406803045,1772203876239,-293.08929833,0.00044802,30]
[406803046,1772203876248,-150.0,0.00044812,30]
[406803047,1772203876259,-150.0,0.00044812,30]
[406803048,1772203876269,-8008.32,0.00044813,120]
[406803049,1772203876279,-150.0,0.00044825,30]
[406803050,1772203876290,-150.0,0.00044834,30]
[406803051,1772203876301,-161.68352318,0.00044849,30]
[406803052,1772203876312,-293.08929833,0.00044849,30]
[406803053,1772203876321,-150.0,0.0004486,30]
[406803054,1772203876331,-150.0,0.00044877,30]
[406803055,1772203876340,-159.88948936,0.0004489,120]
[406803056,1772203876349,-150.0,0.00044893,30]
[406803057,1772203876359,-150.0,0.00044893,30]
[406803058,1772203876368,-150.0,0.00044893,30]
[406803059,1772203876378,-150.0,0.00044893,30]
[406803060,1772203876387,-161.68352318,0.00044895,30]
[406803061,1772203876397,-293.08929833,0.00044895,30]
[406803062,1772203876409,-407.0121628,0.000449,30]
[406803063,1772203876427,-30000.0,0.000449,120]
[406803064,1772203876436,-178.0952702,0.000449,120]
[406803065,1772203876445,-178.09527019,0.000449,120]
[406803066,1772203876455,-178.09527019,0.000449,120]
[406803067,1772203876463,-150.0,0.00044903,2]
[406803068,1772203876473,-150.0,0.00044922,30]
[406803069,1772203876484,-150.0,0.00044928,30]
[406803070,1772203876493,-161.68352318,0.00044942,30]
[406803071,1772203876503,-293.08929833,0.00044942,30]
[406803072,1772203876512,-306.75495059,0.00044946,120]
[406803073,1772203876521,-500.0,0.0004495,30]
[406803074,1772203876530,-9224.5,0.0004495,120]
[406803075,1772203876540,-150.0,0.00044953,30]
[406803076,1772203876550,-4127.56,0.00044959,30]
[406803077,1772203876559,-4127.56,0.00044959,30]
[406803078,1772203876569,-211.0,0.0004496,30]
[406803079,1772203876578,-150.0,0.00044974,30]
[406803080,1772203876587,-150.0,0.00044974,30]
[406803081,1772203876597,-150.0,0.00044979,30]
[406803082,1772203876606,-150.0,0.00044985,30]
[406803083,1772203876616,-161.68352318,0.00044988,30]
[406803084,1772203876625,-293.08929833,0.00044988,30]
[406803085,1772203876634,-150.0,0.00044993,30]
[406803086,1772203876643,-323.26,0.00045,120]
[406803087,1772203876653,-663.7316044,0.00045,120]
[406803088,1772203876663,-356.45282031,0.00045,120]
[406803089,1772203876677,-1790.67525703,0.00045,120]
[406803090,1772203876686,-218.09404977,0.00045,60]
[406803091,1772203876696,-165.36766196,0.00045,120]
[406803092,1772203876705,-221.84898943,0.00045,30]
[406803093,1772203876714,-232.68470585,0.00045,120]
[406803094,1772203876724,-915.3424817,0.00045,120]
[406803095,1772203876733,-179.90805015,0.00045,120]
[406803096,1772203876742,-2442.90036953,0.00045,30]
[406803097,1772203876752,-354.81211064,0.00045,120]
[406803098,1772203876762,-231.0880856,0.00045,120]
[406803099,1772203876771,-3260.5597905,0.00045,120]
[406803100,1772203876780,-229.9854,0.00045,120]
[406803101,1772203876790,-709.05295969,0.00045,120]
[406803102,1772203876799,-5746.17,0.00045,120]
[406803103,1772203876809,-21058.02701718,0.00045,7]
[406803104,1772203876820,-379.38,0.00045,10]
[406803105,1772203876836,-1106.0,0.00045,120]
[406803106,1772203876851,-579.16,0.00045,120]
[406803107,1772203876865,-2508.886707,0.00045,30]
[406803108,1772203876879,-4389.97,0.00045,120]
[406803109,1772203876894,-120000.0,0.00045,120]
[406803110,1772203876909,-160.8,0.00045,85]
[406803111,1772203876926,-1000.0,0.00045,120]
[406803112,1772203876939,-760245.84353339,0.00045,120]
[406803113,1772203876952,-294.0915689,0.00045,120]
[406803114,1772203876966,-5000.0,0.00045,7]
[406803115,1772203876980,-21749.0,0.00045,120]
[406803116,1772203876995,-30000.0,0.00045,120]
[406803117,1772203877009,-187.0,0.00045,30]
[406803118,1772203877024,-3581.86502542,0.00045,30]
[406803119,1772203877039,-261.59,0.00045,60]
[406803120,1772203877054,-15116.0,0.00045,60]
[406803121,1772203877068,-30191.53891906,0.00045,120]
[406803122,1772203877081,-210.0,0.00045,120]
[406803123,1772203877096,-5000.0,0.00045,7]
[406803124,1772203877111,-5639.98,0.00045,30]
[406803125,1772203877125,-249.0,0.00045,30]
[406803126,1772203877138,-8043.16730976,0.00045,120]
[406803127,1772203877150,-211.0,0.00045,2]
[406803128,1772203877163,-187.0,0.00045,30]
[406803129,1772203877180,-271055.0,0.00045,120]
[406803130,1772203877194,-5308.0,0.00045,120]
[406803131,1772203877205,-150.0,0.0004503,30]
[406803132,1772203877216,-161.68352318,0.00045035,30]
[406803133,1772203877229,-293.08929833,0.00045035,30]
[406803134,1772203877245,-150.0,0.00045047,30]
[406803135,1772203877257,-150.0,0.00045054,30]
[406803136,1772203877269,-150.0,0.00045054,30]
[406803137,1772203877284,-5896.74624356,0.00045061,17]
[406803138,1772203877298,-5896.74624356,0.00045061,17]
[406803139,1772203877310,-5896.74624356,0.00045061,17]
[406803140,1772203877322,-5896.74624356,0.00045061,17]
[406803141,1772203877334,-5896.74624356,0.00045061,17]
[406803142,1772203877345,-5896.74624356,0.00045061,17]
[406803143,1772203877358,-5896.74624356,0.00045061,17]
[406803144,1772203877372,-5896.74624356,0.00045061,17]
[406803145,1772203877383,-5896.74624356,0.00045061,17]
[406803146,1772203877395,-150.0,0.0004507,10]
[406803147,1772203877409,-150.0,0.0004507,10]
[406803148,1772203877422,-150.0,0.0004507,10]
[406803149,1772203877435,-150.0,0.0004507,10]
[406803150,1772203877447,-150.0,0.0004507,10]
[406803151,1772203877459,-150.0,0.0004507,10]
[406803152,1772203877471,-150.0,0.0004507,10]
[406803153,1772203877483,-150.0,0.0004507,10]
[406803154,1772203877495,-150.0,0.0004507,10]
[406803155,1772203877507,-150.0,0.0004507,10]
[406803156,1772203877518,-150.0,0.0004507,10]
[406803157,1772203877530,-150.0,0.0004507,10]
[406803158,1772203877542,-150.0,0.0004507,10]
[406803159,1772203877554,-150.0,0.0004507,10]
[406803160,1772203877566,-150.0,0.0004507,10]
[406803161,1772203877577,-150.0,0.0004507,10]
[406803162,1772203877590,-150.0,0.0004507,10]
[406803163,1772203877601,-150.0,0.0004507,10]
[406803164,1772203877613,-150.0,0.0004507,10]
[406803165,1772203877624,-150.0,0.0004507,10]
[406803166,1772203877638,-269.0,0.0004507,10]
[406803167,1772203877649,-151.0,0.0004507,10]
[406803168,1772203877662,-151.0,0.0004507,10]
[406803169,1772203877674,-151.0,0.0004507,10]
[406803170,1772203877686,-151.0,0.0004507,10]
[406803171,1772203877698,-151.0,0.0004507,10]
[406803172,1772203877711,-151.0,0.0004507,10]
[406803173,1772203877724,-151.0,0.0004507,10]
[406803174,1772203877735,-151.0,0.0004507,10]
[406803175,1772203877746,-151.0,0.0004507,10]
[406803176,1772203877757,-151.0,0.0004507,10]
[406803177,1772203877768,-151.0,0.0004507,10]
[406803178,1772203877780,-151.0,0.0004507,10]
[406803179,1772203877791,-151.0,0.0004507,10]
[406803180,1772203877802,-205.0,0.0004507,10]
[406803181,1772203877814,-150.0,0.00045081,30]
[406803182,1772203877824,-150.0,0.00045081,30]
[406803183,1772203877836,-161.68352318,0.00045081,30]
[406803184,1772203877846,-293.08929833,0.00045081,30]
[406803185,1772203877858,-8008.32,0.00045087,120]
[406803186,1772203877868,-2930.003371,0.00045096,7]
[406803187,1772203877879,-1484.584081,0.00045096,7]
[406803188,1772203877890,-2400.38,0.00045096,120]
[406803189,1772203877901,-600.09,0.00045096,120]
[406803190,1772203877912,-600.09,0.00045096,120]
[406803191,1772203877926,-600.1,0.00045096,120]
[406803192,1772203877937,-232.6126976,0.000451,120]
[406803193,1772203877949,-240.77438667,0.000451,30]
[406803194,1772203877960,-15000.0,0.000451,120]
[406803195,1772203877971,-150.0,0.00045109,30]
[406803196,1772203877982,-161.68352318,0.00045128,30]
[406803197,1772203877992,-293.08929833,0.00045128,30]
[406803198,1772203878003,-900.0,0.00045131,60]
[406803199,1772203878015,-1900.0,0.00045131,60]
[406803200,1772203878026,-2100.0,0.00045131,60]
[406803201,1772203878038,-150.0,0.00045133,30]
[406803202,1772203878049,-150.0,0.00045135,30]
[406803203,1772203878059,-150.0,0.00045135,30]
[406803204,1772203878071,-150.0,0.00045135,30]
[406803205,1772203878081,-150.0,0.00045135,30]
[406803206,1772203878093,-150.0,0.00045145,30]
[406803207,1772203878103,-150.0,0.00045152,30]
[406803208,1772203878115,-150.0,0.00045171,30]
[406803209,1772203878126,-161.68352318,0.00045175,30]
[406803210,1772203878139,-293.08929833,0.00045175,30]
[406803211,1772203878151,-1645.71036141,0.00045181,120]
[406803212,1772203878162,-150.0,0.00045184,30]
[406803213,1772203878177,-150.0,0.00045184,30]
[406803214,1772203878187,-500.0,0.00045205,2]
[406803215,1772203878198,-500.0,0.00045205,2]
[406803216,1772203878209,-500.0,0.00045205,2]
[406803217,1772203878220,-500.0,0.00045205,2]
[406803218,1772203878230,-500.0,0.00045205,2]
[406803219,1772203878242,-500.0,0.00045205,2]
[406803220,1772203878252,-562.25386094,0.00045205,2]
[406803221,1772203878263,-500.0,0.00045205,2]
[406803222,1772203878274,-500.0,0.00045205,2]
[406803223,1772203878285,-500.0,0.00045205,2]
[406803224,1772203878295,-500.0,0.00045205,2]
[406803225,1772203878306,-500.0,0.00045205,2]
[406803226,1772203878317,-500.0,0.00045205,2]
[406803227,1772203878328,-500.0,0.00045205,2]
[406803228,1772203878339,-500.0,0.00045205,2]
[406803229,1772203878350,-194.20502466,0.00045205,2]
[406803230,1772203878360,-406.48784689,0.00045205,2]
[406803231,1772203878371,-508.26919628,0.00045205,10]
[406803232,1772203878382,-1000.0,0.00045205,2]
[406803233,1772203878393,-1000.0,0.00045205,2]
[406803234,1772203878404,-1000.0,0.00045205,2]
[406803235,1772203878416,-1000.0,0.00045205,2]
[406803236,1772203878428,-1000.0,0.00045205,2]
[406803237,1772203878439,-1000.0,0.00045205,2]
[406803238,1772203878450,-1000.0,0.00045205,2]
[406803239,1772203878462,-1000.0,0.00045205,2]
[406803240,1772203878473,-1000.0,0.00045205,2]
[406803241,1772203878484,-1000.0,0.00045205,2]
[406803242,1772203878496,-1000.0,0.00045205,2]
[406803243,1772203878507,-1000.0,0.00045205,2]
[406803244,1772203878518,-1000.0,0.00045205,2]
[406803245,1772203878528,-1000.0,0.00045205,2]
[406803246,1772203878539,-1000.0,0.00045205,2]
[406803247,1772203878551,-1000.0,0.00045205,2]
[406803248,1772203878562,-1000.0,0.00045205,2]
[406803249,1772203878573,-1000.0,0.00045205,2]
[406803250,1772203878583,-1000.0,0.00045205,2]
[406803251,1772203878594,-1144.28747833,0.00045205,2]
[406803252,1772203878605,-500.0,0.00045205,30]
[406803253,1772203878616,-500.0,0.00045205,30]
[406803254,1772203878627,-500.0,0.00045205,30]
[406803255,1772203878638,-500.0,0.00045205,30]
[406803256,1772203878648,-500.0,0.00045205,30]
[406803257,1772203878659,-500.0,0.00045205,30]
[406803258,1772203878671,-500.0,0.00045205,30]
[406803259,1772203878681,-7149.9793477,0.00045205,5]
[406803260,1772203878692,-500.0,0.00045205,2]
[406803261,1772203878703,-500.0,0.00045205,2]
[406803262,1772203878714,-500.0,0.00045205,2]
[406803263,1772203878725,-500.0,0.00045205,2]
[406803264,1772203878736,-500.0,0.00045205,2]
[406803265,1772203878747,-500.0,0.00045205,2]
[406803266,1772203878759,-500.0,0.00045205,2]
[406803267,1772203878770,-500.0,0.00045205,2]
[406803268,1772203878781,-500.0,0.00045205,2]
[406803269,1772203878795,-500.0,0.00045205,120]
[406803270,1772203878808,-418.27077909,0.00045205,120]
[406803271,1772203878821,-500.0,0.00045205,2]
[406803272,1772203878834,-500.0,0.00045205,2]
[406803273,1772203878847,-500.0,0.00045205,2]
[406803274,1772203878859,-500.0,0.00045205,2]
[406803275,1772203878871,-500.0,0.00045205,2]
[406803276,1772203878885,-500.0,0.00045205,2]
[406803277,1772203878897,-500.0,0.00045205,2]